bitfinex/quotes_BTCUSD_20230108
["timestamp","ask_amount","ask_price","bid_price","bid_amount"]
[1673219800755,0.02221144,17062.0,17061.0,2.65510971]
[1673219801096,0.02221144,17062.0,17061.0,2.28778271]
[1673219801576,0.02221144,17062.0,17061.0,2.95510971]
[1673219801816,0.02221144,17062.0,17061.0,2.65510971]
[1673219802250,0.02221144,17062.0,17061.0,2.95510971]
[1673219804177,0.02221144,17062.0,17061.0,2.28778271]
[1673219804681,0.02221144,17062.0,17061.0,2.95510971]
[1673219806220,0.02221144,17062.0,17061.0,2.65510971]
[1673219806763,0.02221144,17062.0,17061.0,2.28778271]
[1673219807224,0.02221144,17062.0,17061.0,2.28769927]
[1673219808520,0.02221144,17062.0,17061.0,2.65502627]
[1673219809023,0.02221144,17062.0,17061.0,2.28769927]
[1673219809542,0.02221144,17062.0,17061.0,1.7582277]
[1673219810779,0.02221144,17062.0,17061.0,2.0582277]
[1673219811031,0.02221144,17062.0,17061.0,2.4255547]
[1673219811787,0.02221144,17062.0,17061.0,3.1255547]
[1673219812050,0.01721144,17062.0,17061.0,3.79824322]
[1673219812545,0.01721144,17062.0,17061.0,4.22702111]
[1673219812801,0.01721144,17062.0,17061.0,3.98934322]
[1673219813336,0.01961468,17063.0,17062.0,1.3852642]
[1673219813571,0.01961468,17063.0,17062.0,3.7492582]
[1673219815661,0.03411067,17064.0,17063.0,0.41960932]
[1673219815897,0.03411067,17064.0,17063.0,2.95422448]
[1673219816133,6.7e-07,17064.0,17063.0,3.76820417]
[1673219816379,0.08191239,17065.0,17064.0,0.367327]
[1673219816627,0.03409978,17065.0,17064.0,2.64383878]
[1673219816914,0.03409978,17065.0,17064.0,3.34383878]
[1673219817122,0.03409978,17065.0,17064.0,3.37925547]
[1673219817650,0.02190534,17067.0,17065.0,0.29999922]
[1673219817911,0.02190534,17067.0,17066.0,3.203667]
[1673219818175,0.02190534,17067.0,17066.0,3.44134489]
[1673219818409,0.02221144,17068.0,17067.0,0.4]
[1673219818685,0.02221144,17068.0,17067.0,1.450727]
[1673219818940,0.02221144,17068.0,17067.0,3.322579]
[1673219819193,0.02221144,17068.0,17067.0,3.94541981]
[1673219821330,0.02221144,17068.0,17067.0,3.94547981]
[1673219821589,0.02221144,17068.0,17067.0,3.94581742]
[1673219821847,0.04975309,17072.0,17068.0,1.06575517]
[1673219822113,0.04975309,17072.0,17069.0,3.203227]
[1673219822376,0.04975309,17072.0,17070.0,0.367327]
[1673219822635,0.7344123,17072.0,17071.0,1.171576]
[1673219822890,0.7344123,17072.0,17071.0,0.585788]
[1673219822891,0.70730824,17072.0,17071.0,0.585788]
[1673219823151,0.87954179,17072.0,17071.0,1.171576]
[1673219823433,0.02977593,17072.0,17071.0,1.40925389]
[1673219823689,0.3,17073.0,17071.0,1.171576]
[1673219823946,0.3,17073.0,17071.0,1.40925389]
[1673219824196,0.3,17073.0,17071.0,1.171576]
[1673219824460,0.3,17073.0,17072.0,0.4]
[1673219824771,0.3,17073.0,17072.0,1.571508]
[1673219826320,0.3,17073.0,17072.0,1.757262]
[1673219827081,1.91322055,17074.0,17073.0,0.4]
[1673219827366,0.63862055,17074.0,17073.0,1.57144]
[1673219827870,0.02141917,17074.0,17073.0,2.15716]
[1673219829723,0.02141917,17074.0,17073.0,1.1715]
[1673219829991,1.04770988,17074.0,17073.0,6e-05]
[1673219830244,1.04770988,17074.0,17072.0,0.58246067]
[1673219830245,1.92720214,17074.0,17072.0,0.58246067]
[1673219830495,0.1925,17073.0,17072.0,0.58246067]
[1673219831782,1.4775473,17073.0,17068.0,1.285875]
[1673219832030,0.1925,17069.0,17066.0,0.70124714]
[1673219832292,0.6226876,17071.0,17062.0,0.95969619]
[1673219832605,0.6226876,17071.0,17068.0,1.171754]
[1673219832606,0.59123543,17071.0,17068.0,1.171754]
[1673219832801,0.64749325,17070.0,17068.0,1.171754]
[1673219833350,0.53366839,17069.0,17068.0,1.171754]
[1673219834141,0.53366839,17069.0,17068.0,1.16879177]
[1673219834402,0.53366839,17069.0,17067.0,0.585899]
[1673219834926,0.1913,17068.0,17067.0,0.585899]
[1673219835203,0.72566839,17069.0,17067.0,0.585899]
[1673219835736,0.72566839,17069.0,17067.0,0.82357689]
[1673219836259,0.72566839,17069.0,17067.0,1.171825]
[1673219836804,0.6458892,17071.0,17067.0,2.08965984]
[1673219837056,0.71541868,17070.0,17068.0,0.03541669]
[1673219837330,0.71541868,17070.0,17069.0,1.171714]
[1673219838522,1.34043223,17072.0,17069.0,1.171714]
[1673219838614,1.97906088,17072.0,17070.0,0.63767789]
[1673219839163,0.68846088,17072.0,17071.0,1.171576]
[1673219839570,0.04983223,17072.0,17071.0,1.171576]
[1673219839702,0.87954536,17072.0,17071.0,0.585788]
[1673219840215,0.65270548,17072.0,17071.0,1.171576]
[1673219841054,0.65270548,17072.0,17070.0,0.585792]
[1673219841318,0.65270548,17072.0,17071.0,0.04327166]
[1673219841319,0.82789359,17072.0,17071.0,0.04327166]
[1673219841574,1.97028481,17072.0,17071.0,0.34327166]
[1673219841881,2.00260237,17072.0,17071.0,0.34327166]
[1673219842149,1.97028481,17072.0,17071.0,0.34327166]
[1673219842684,2.37595668,17072.0,17071.0,0.34327166]
[1673219842990,3.19114428,17072.0,17071.0,0.34327166]
[1673219843271,3.19114428,17072.0,17071.0,0.28319712]
[1673219843272,4.12722817,17072.0,17071.0,0.28319712]
[1673219843469,4.64864024,17072.0,17071.0,0.28319712]
[1673219843718,4.67726182,17072.0,17071.0,0.28319712]
[1673219843973,4.22622046,17072.0,17071.0,0.28319712]
[1673219844226,3.8758605,17072.0,17071.0,0.28319712]
[1673219845273,3.9121605,17072.0,17071.0,0.28319712]
[1673219846000,2.80737595,17072.0,17071.0,0.28319712]
[1673219846499,2.40170408,17072.0,17071.0,0.52087501]
[1673219846786,2.40170408,17072.0,17071.0,0.28319712]
[1673219846787,1.99806953,17072.0,17071.0,0.28319712]
[1673219847059,1.73579544,17072.0,17071.0,0.86898512]
[1673219847297,1.56092637,17072.0,17071.0,0.86898512]
[1673219847519,1.46092637,17072.0,17071.0,0.86898512]
[1673219847788,1.63579544,17072.0,17071.0,0.86898512]
[1673219848343,1.60717386,17072.0,17071.0,0.86898512]
[1673219848810,1.86944795,17072.0,17071.0,0.86898512]
[1673219849071,1.86955102,17072.0,17071.0,0.86898512]
[1673219849842,2.21925464,17072.0,17071.0,0.86898512]
[1673219850147,1.87025474,17072.0,17071.0,0.86898512]
[1673219850347,1.93835538,17072.0,17071.0,0.86898512]
[1673219850618,1.93835538,17072.0,17071.0,0.28319712]
[1673219850869,1.9865481,17072.0,17071.0,0.28319712]
[1673219851124,2.39221997,17072.0,17071.0,0.28319712]
[1673219851890,2.91809129,17072.0,17071.0,0.28319712]
[1673219852201,3.01013871,17072.0,17071.0,0.28319712]
[1673219852449,4.18685953,17072.0,17071.0,0.28319712]
[1673219852924,4.18685953,17072.0,17071.0,0.18279421]
[1673219852925,6.14001442,17072.0,17071.0,0.18279421]
[1673219853184,7.9288452,17072.0,17071.0,0.14870859]
[1673219853472,5.94636234,17072.0,17071.0,0.14870859]
[1673219853700,6.24636234,17072.0,17071.0,0.14870859]
[1673219853947,5.94636234,17072.0,17071.0,0.14870859]
[1673219854697,5.94635854,17072.0,17071.0,0.14870859]
[1673219855338,6.24635801,17072.0,17071.0,0.14870859]
[1673219855768,5.65465206,17072.0,17071.0,0.14870859]
[1673219855786,7.41418111,17072.0,17071.0,0.14870859]
[1673219856026,5.35465206,17072.0,17071.0,0.14870859]
[1673219856250,5.94615045,17072.0,17071.0,0.14870859]
[1673219857753,5.83165045,17072.0,17071.0,0.14870859]
[1673219858291,6.71393617,17072.0,17071.0,0.14870859]
[1673219858550,5.24583835,17072.0,17071.0,0.14870859]
[1673219858762,5.54583835,17072.0,17071.0,0.14870859]
[1673219859032,4.65439806,17072.0,17071.0,0.14870859]
[1673219859304,3.56003496,17072.0,17071.0,0.14870859]
[1673219859553,2.57527781,17072.0,17071.0,0.14870859]
[1673219859808,2.16960594,17072.0,17071.0,0.14870859]
[1673219860294,1.64394307,17072.0,17071.0,0.14870859]
[1673219860551,2.38656653,17072.0,17071.0,0.14870859]
[1673219860810,2.16960594,17072.0,17071.0,0.14870859]
[1673219863106,2.16960594,17072.0,17071.0,0.13327379]
[1673219863858,2.16974118,17072.0,17071.0,0.13327379]
[1673219864359,1.64394307,17072.0,17071.0,0.13327379]
[1673219864971,2.16974053,17072.0,17071.0,0.13327379]
[1673219865370,1.64394307,17072.0,17071.0,0.13327379]
[1673219865922,2.75532584,17072.0,17071.0,0.13327379]
[1673219866168,3.95418672,17072.0,17071.0,0.13327379]
[1673219866432,3.34107984,17072.0,17071.0,0.13327379]
[1673219868828,3.95418672,17072.0,17071.0,0.13327379]
[1673219869074,4.42253569,17072.0,17071.0,0.13327379]
[1673219869338,5.24235964,17072.0,17071.0,0.09036932]
[1673219869591,7.12775496,17072.0,17071.0,0.09036932]
[1673219869873,8.20692319,17072.0,17071.0,0.09036932]
[1673219870136,9.07509254,17072.0,17071.0,0.09036932]
[1673219870375,9.0262211,17072.0,17071.0,5.62e-06]
[1673219870623,9.0262211,17072.0,17065.0,0.00228171]
[1673219870624,0.04911681,17070.0,17065.0,0.00228171]
[1673219870876,0.75462917,17066.0,17064.0,0.84789935]
[1673219871122,0.75462917,17066.0,17062.0,1.01127549]
[1673219871123,1.12900447,17065.0,17063.0,0.4]
[1673219871442,0.4387592,17064.0,17063.0,0.986211]
[1673219871876,0.17550368,17064.0,17063.0,0.986211]
[1673219872373,0.17550368,17064.0,17063.0,1.572274]
[1673219872624,1.41190313,17065.0,17063.0,1.572274]
[1673219873047,1.06089579,17065.0,17063.0,1.572274]
[1673219873233,1.06089579,17065.0,17063.0,1.572124]
[1673219873511,1.23639945,17065.0,17064.0,0.00033767]
[1673219873651,0.17547027,17064.0,17063.0,1.172124]
[1673219873921,0.17543733,17064.0,17063.0,1.572124]
[1673219874176,0.17543733,17064.0,17063.0,1.172124]
[1673219874454,0.17543733,17064.0,17063.0,1.1014408]
[1673219874711,0.43869285,17064.0,17063.0,0.99761925]
[1673219874972,0.61426286,17064.0,17063.0,0.97374489]
[1673219875229,0.61426286,17064.0,17063.0,0.95000986]
[1673219875497,1.052949,17064.0,17063.0,0.95000986]
[1673219875744,0.43855603,17064.0,17063.0,0.95000986]
[1673219875992,0.43855603,17064.0,17063.0,0.88672664]
[1673219876237,0.43855603,17064.0,17063.0,0.79162765]
[1673219876766,0.43849145,17064.0,17063.0,0.79162765]
[1673219877005,0.17538161,17064.0,17063.0,1.77769065]
[1673219877268,0.17538161,17064.0,17063.0,1.37802834]
[1673219877510,0.52638895,17064.0,17063.0,1.37769065]
[1673219877826,0.17538161,17064.0,17063.0,1.37769065]
[1673219878028,1.14852554,17065.0,17063.0,1.77769065]
[1673219878281,0.7975182,17065.0,17063.0,1.77769065]
[1673219879038,0.7975182,17065.0,17063.0,1.37769065]
[1673219879813,0.17538161,17064.0,17063.0,1.37769065]
[1673219880070,0.17538161,17064.0,17063.0,1.37269065]
[1673219881106,0.17538161,17064.0,17063.0,1.34993924]
[1673219881345,0.7975182,17065.0,17063.0,1.34993924]
[1673219881869,0.7975182,17065.0,17063.0,1.74993924]
[1673219882385,0.7975182,17065.0,17064.0,0.4]
[1673219882881,0.7975182,17065.0,17064.0,2.158087]
[1673219883135,0.7975182,17065.0,17064.0,1.753087]
[1673219885145,0.7975182,17065.0,17064.0,1.6505901]
[1673219885414,0.7975182,17065.0,17064.0,1.5480932]
[1673219885676,0.79743599,17065.0,17064.0,1.5480932]
[1673219885914,1.23607512,17065.0,17064.0,1.5480932]
[1673219886406,1.45505011,17065.0,17064.0,0.9620642]
[1673219886666,1.45505007,17065.0,17064.0,0.9620642]
[1673219886912,1.23608014,17065.0,17064.0,0.9620642]
[1673219887700,1.41191117,17065.0,17064.0,0.9620642]
[1673219888010,0.83292376,17065.0,17064.0,0.9620642]
[1673219888221,0.43833442,17065.0,17064.0,0.9620642]
[1673219888449,0.43833442,17065.0,17064.0,1.5480932]
[1673219888963,0.43833442,17065.0,17064.0,0.9620642]
[1673219889715,0.78934176,17065.0,17064.0,0.86096834]
[1673219889977,1.66916667,17065.0,17064.0,0.86096834]
[1673219890501,1.31821369,17065.0,17064.0,1.44699734]
[1673219890786,0.87982491,17065.0,17064.0,2.68428862]
[1673219891024,0.78939612,17066.0,17064.0,2.38632542]
[1673219891025,0.17538532,17066.0,17064.0,2.38632542]
[1673219891293,0.17538532,17066.0,17065.0,0.375827]
[1673219891549,1.0551092,17066.0,17065.0,1.180488]
[1673219891841,1.0551092,17066.0,17065.0,1.65969229]
[1673219892065,1.0551092,17066.0,17065.0,2.22856414]
[1673219892531,0.87972388,17066.0,17065.0,2.22856414]
[1673219892971,0.87972388,17066.0,17065.0,2.52856414]
[1673219893309,0.87972388,17066.0,17065.0,2.89589114]
[1673219893558,0.48611446,17067.0,17065.0,2.89589114]
[1673219893804,0.48611446,17067.0,17066.0,0.767327]
[1673219894056,1.1027988,17067.0,17066.0,2.533707]
[1673219894304,1.05507312,17067.0,17066.0,2.16638]
[1673219894561,1.05507312,17067.0,17066.0,1.76638]
[1673219894826,1.31807658,17067.0,17066.0,1.76638]
[1673219895339,1.4936986,17067.0,17066.0,1.76638]
[1673219895630,1.71262802,17067.0,17066.0,1.75788]
[1673219895855,1.36162068,17067.0,17066.0,1.17192]
[1673219896111,2.04956211,17067.0,17066.0,0.58596]
[1673219896361,2.04956211,17067.0,17064.0,0.58601]
[1673219896362,1.86809946,17067.0,17064.0,0.58601]
[1673219896609,0.61396069,17065.0,17064.0,0.58601]
[1673219896826,1.49364849,17065.0,17064.0,1.172039]
[1673219897617,1.69627881,17065.0,17064.0,1.172039]
[1673219897880,1.91486624,17065.0,17064.0,1.172039]
[1673219898627,1.56403156,17065.0,17064.0,1.172039]
[1673219899375,1.36140124,17065.0,17064.0,1.172039]
[1673219899623,1.71225451,17065.0,17064.0,1.172039]
[1673219902414,1.66908441,17065.0,17064.0,1.172039]
[1673219902690,1.93231458,17065.0,17064.0,1.172039]
[1673219902934,1.49377124,17065.0,17064.0,1.172039]
[1673219903299,1.93231458,17065.0,17064.0,1.758068]
[1673219903461,1.49377124,17065.0,17064.0,1.758068]
[1673219903718,1.66908441,17065.0,17064.0,1.758068]
[1673219903968,1.71228342,17065.0,17064.0,1.758068]
[1673219904473,1.49384425,17065.0,17064.0,1.758068]
[1673219905231,1.3185231,17065.0,17064.0,1.758068]
[1673219905484,1.3185231,17065.0,17064.0,1.99574589]
[1673219905754,1.05521992,17065.0,17064.0,3.00268763]
[1673219906036,0.8796878,17065.0,17064.0,3.36336552]
[1673219906269,0.8796878,17065.0,17064.0,3.49301463]
[1673219906768,0.8796878,17065.0,17064.0,3.30057289]
[1673219907067,0.17553212,17067.0,17064.0,3.93433986]
[1673219907296,0.17553212,17067.0,17065.0,0.675827]
[1673219907562,0.66364287,17068.0,17067.0,0.4]
[1673219907563,0.48832172,17068.0,17067.0,0.4]
[1673219907827,1.36795486,17068.0,17067.0,1.776253]
[1673219908088,1.31855844,17068.0,17067.0,1.776253]
[1673219908360,1.05525526,17068.0,17067.0,1.40926361]
[1673219908606,1.02437457,17068.0,17067.0,1.40926361]
[1673219908854,1.02437457,17068.0,17067.0,1.77659061]
[1673219909116,0.9956707,17068.0,17067.0,1.408926]
[1673219909692,0.9840777,17068.0,17067.0,1.408926]
[1673219909906,0.84495194,17068.0,17067.0,1.408926]
[1673219910159,1.10825512,17068.0,17067.0,1.694852]
[1673219910418,1.10825512,17068.0,17067.0,1.180352]
[1673219911129,1.68113508,17068.0,17067.0,1.180352]
[1673219911222,1.58113508,17068.0,17067.0,1.180352]
[1673219911548,1.35895641,17068.0,17067.0,1.580352]
[1673219911761,1.79749975,17068.0,17067.0,1.580352]
[1673219911969,1.79749975,17068.0,17067.0,1.180352]
[1673219912225,1.53434855,17068.0,17067.0,1.766278]
[1673219913007,1.35891985,17068.0,17067.0,1.766278]
[1673219913273,1.79746319,17068.0,17067.0,1.866278]
[1673219913569,1.35891985,17068.0,17067.0,2.266278]
[1673219913825,0.74495194,17068.0,17067.0,2.266278]
[1673219914064,1.00806658,17068.0,17067.0,1.866278]
[1673219914308,1.35891985,17068.0,17067.0,1.866278]
[1673219915085,1.00806658,17068.0,17067.0,2.266278]
[1673219915835,1.03753476,17068.0,17067.0,2.266278]
[1673219916089,0.93753476,17068.0,17067.0,2.266278]
[1673219916339,0.93753476,17068.0,17067.0,1.866278]
[1673219916602,1.28838803,17068.0,17067.0,1.866278]
[1673219916846,1.51261638,17068.0,17067.0,1.866278]
[1673219917600,1.46381673,17068.0,17067.0,1.866278]
[1673219917850,1.46381673,17068.0,17067.0,2.26661561]
[1673219918103,1.43434855,17068.0,17067.0,2.26661561]
[1673219918616,1.25890498,17068.0,17067.0,2.26661561]
[1673219919121,0.90805171,17068.0,17067.0,2.26661561]
[1673219919626,0.64495194,17068.0,17067.0,2.91315079]
[1673219920159,0.64495194,17068.0,17067.0,3.21315079]
[1673219920422,0.17537425,17069.0,17068.0,0.4]
[1673219920671,0.17537425,17069.0,17068.0,2.5335]
[1673219920924,0.17537425,17069.0,17068.0,2.166173]
[1673219921463,0.66306985,17070.0,17068.0,2.166173]
[1673219921464,0.8332592,17070.0,17068.0,2.5335]
[1673219921705,0.22162515,17070.0,17069.0,0.0085]
[1673219921956,0.14488023,17070.0,17069.0,1.180214]
[1673219922452,0.4957335,17070.0,17069.0,1.180214]
[1673219922708,0.14488023,17070.0,17069.0,1.180214]
[1673219922962,0.4957335,17070.0,17069.0,1.180214]
[1673219923238,0.14488023,17070.0,17069.0,1.180214]
[1673219923493,0.14488023,17070.0,17069.0,1.766071]
[1673219924257,0.07005702,17071.0,17069.0,2.85458513]
[1673219924506,0.0299172,17070.0,17069.0,2.84608513]
[1673219924753,0.07005702,17071.0,17069.0,3.21341213]
[1673219925066,0.07005702,17071.0,17070.0,0.767327]
[1673219925280,0.02113531,17071.0,17070.0,2.52513355]
[1673219925540,0.04992236,17071.0,17070.0,2.52513355]
[1673219925764,0.02113531,17071.0,17070.0,2.52513355]
[1673219926339,0.02098235,17071.0,17070.0,3.2135895]
[1673219926561,0.02098235,17071.0,17070.0,3.2220895]
[1673219927321,0.02082939,17071.0,17070.0,2.8547625]
[1673219928572,0.02082939,17071.0,17070.0,3.2220895]
[1673219929096,0.02082939,17071.0,17070.0,2.8547625]
[1673219929347,0.02067643,17071.0,17070.0,2.8547625]
[1673219929855,1.575022,17071.0,17070.0,0.585823]
[1673219930118,1.68900871,17071.0,17069.0,0.585857]
[1673219930390,0.6860598,17070.0,17069.0,0.585857]
[1673219932034,0.4969998,17070.0,17069.0,0.560857]
[1673219932210,0.61322287,17070.0,17069.0,1.146714]
[1673219933231,0.43800497,17070.0,17069.0,1.546714]
[1673219933483,0.17519895,17070.0,17069.0,1.54705157]
[1673219934501,0.17519895,17070.0,17069.0,2.13290857]
[1673219934785,1.0344174,17071.0,17070.0,0.4]
[1673219935029,0.45852844,17071.0,17070.0,2.157469]
[1673219935546,0.10091101,17071.0,17070.0,2.157469]
[1673219935810,0.03319885,17071.0,17070.0,2.157469]
[1673219936068,0.91271463,17071.0,17070.0,2.157469]
[1673219937325,0.91271463,17071.0,17070.0,1.757469]
[1673219937607,1.80816653,17071.0,17070.0,1.757469]
[1673219937894,2.05057208,17071.0,17070.0,1.166646]
[1673219938117,2.05057208,17071.0,17070.0,0.580823]
[1673219938118,1.61256882,17071.0,17070.0,0.580823]
[1673219938644,2.13909799,17071.0,17070.0,0.580823]
[1673219938910,2.05059351,17071.0,17070.0,0.580823]
[1673219939185,2.4010088,17071.0,17070.0,0.580823]
[1673219939732,2.05059351,17071.0,17070.0,0.580823]
[1673219939986,2.03682934,17071.0,17070.0,1.166646]
[1673219941572,1.59880465,17071.0,17070.0,1.166646]
[1673219941883,1.93718733,17071.0,17070.0,1.166646]
[1673219942684,1.30454145,17071.0,17070.0,1.166646]
[1673219942945,1.65523514,17071.0,17070.0,1.166646]
[1673219943720,1.30454145,17071.0,17070.0,1.752469]
[1673219945326,1.30454145,17071.0,17070.0,2.47734015]
[1673219945563,1.65775901,17071.0,17070.0,2.47734015]
[1673219946607,1.30687526,17071.0,17070.0,2.47734015]
[1673219946865,1.30724548,17071.0,17070.0,2.47734015]
[1673219947129,0.86849258,17071.0,17070.0,2.47734015]
[1673219947390,1.30724541,17071.0,17070.0,2.47734015]
[1673219947643,0.86849258,17071.0,17070.0,2.47734015]
[1673219948163,1.3072376,17071.0,17070.0,2.48584015]
[1673219948481,1.55548752,17071.0,17070.0,2.49384015]
[1673219948780,1.33649786,17071.0,17070.0,2.48534015]
[1673219949163,1.42849786,17071.0,17070.0,1.174646]
[1673219949189,0.98975284,17071.0,17070.0,1.174646]
[1673219949917,1.88998302,17071.0,17070.0,1.174646]
[1673219950194,2.41651219,17071.0,17070.0,1.174646]
[1673219950453,2.18466413,17071.0,17070.0,1.174646]
[1673219951733,1.51628201,17071.0,17070.0,1.174646]
[1673219951999,1.42857252,17071.0,17070.0,1.760469]
[1673219953268,1.64760676,17071.0,17070.0,2.34061471]
[1673219953776,1.47208699,17071.0,17070.0,2.34061471]
[1673219954055,1.03327818,17071.0,17070.0,2.64911471]
[1673219954300,1.03327818,17071.0,17070.0,3.13094171]
[1673219954555,1.03327818,17071.0,17070.0,2.76361471]
[1673219954880,0.74782776,17071.0,17070.0,3.24434171]
[1673219955086,0.092,17071.0,17070.0,3.24434171]
[1673219955327,0.09175933,17071.0,17070.0,3.24434171]
[1673219955586,0.01811507,17072.0,17071.0,1.03518294]
[1673219955809,0.01811507,17072.0,17071.0,2.99708594]
[1673219956616,0.48324344,17074.0,17072.0,0.4]
[1673219956831,0.48324344,17074.0,17073.0,0.675827]
[1673219957087,0.47824344,17074.0,17073.0,3.018707]
[1673219957341,0.78986195,17075.0,17073.0,3.018707]
[1673219957596,0.61433538,17075.0,17073.0,2.65138]
[1673219957851,0.17534224,17074.0,17073.0,2.65138]
[1673219958094,0.43864215,17074.0,17073.0,2.35138]
[1673219958344,0.43864215,17074.0,17073.0,3.041993]
[1673219958585,0.43864215,17075.0,17073.0,3.81352]
[1673219958840,0.17534224,17075.0,17074.0,0.767327]
[1673219959092,0.20462046,17075.0,17074.0,2.157055]
[1673219959402,0.02927822,17075.0,17074.0,2.832882]
[1673219959935,0.46038441,17076.0,17074.0,2.832882]
[1673219960180,0.02174226,17076.0,17075.0,0.423]
[1673219960459,0.02174226,17076.0,17075.0,1.961629]
[1673219960713,0.02174226,17076.0,17075.0,1.547129]
[1673219960964,0.1970845,17076.0,17075.0,1.8246163]
[1673219961288,0.02174226,17076.0,17075.0,1.8246163]
[1673219961778,0.02174226,17076.0,17075.0,2.4919433]
[1673219962271,0.02174226,17076.0,17075.0,2.4959433]
[1673219963057,0.02174226,17076.0,17075.0,2.8959433]
[1673219963281,0.02174226,17076.0,17075.0,2.8956433]
[1673219963534,0.0441971,17077.0,17076.0,0.95204264]
[1673219963812,0.07330252,17077.0,17076.0,2.79030364]
[1673219964013,0.19810391,17078.0,17076.0,3.37562064]
[1673219964271,0.19810391,17078.0,17076.0,3.00829364]
[1673219964502,0.00798152,17078.0,17077.0,0.66726748]
[1673219964766,0.17534224,17079.0,17078.0,0.4]
[1673219965009,0.17534224,17079.0,17078.0,1.570796]
[1673219965244,0.1124878,17079.0,17078.0,1.570796]
[1673219965472,0.07965913,17079.0,17078.0,1.570496]
[1673219965720,0.85643568,17080.0,17079.0,0.3997]
[1673219965974,0.44703901,17080.0,17079.0,1.53075801]
[1673219966213,0.83606021,17080.0,17079.0,1.171028]
[1673219966472,0.39724053,17080.0,17079.0,1.170728]
[1673219966721,0.39724053,17080.0,17079.0,1.170428]
[1673219967233,0.35329443,17080.0,17079.0,1.16888854]
[1673219967479,0.31549049,17080.0,17079.0,1.16888854]
[1673219967734,0.75431017,17080.0,17079.0,1.16858854]
[1673219967968,0.82062167,17080.0,17079.0,1.16858854]
[1673219968234,0.79476547,17080.0,17079.0,1.17958854]
[1673219968461,0.78321224,17080.0,17079.0,1.16828854]
[1673219968714,0.79148047,17080.0,17079.0,1.16828854]
[1673219968961,0.60293622,17080.0,17079.0,1.17898854]
[1673219969217,0.63160982,17080.0,17079.0,1.17868854]
[1673219969702,0.0289105,17080.0,17079.0,1.16738854]
[1673219969948,0.0289105,17080.0,17079.0,1.17808854]
[1673219970223,0.81740924,17081.0,17079.0,0.58157454]
[1673219970470,0.15723481,17080.0,17079.0,0.16181315]
[1673219970767,0.15723481,17080.0,17079.0,0.15051315]
[1673219971138,0.15723481,17080.0,17079.0,0.16121315]
[1673219971207,0.15723481,17080.0,17079.0,0.15021315]
[1673219971472,0.15723481,17080.0,17079.0,0.14991315]
[1673219971978,0.15723481,17080.0,17079.0,0.16097315]
[1673219972211,0.86963201,17080.0,17079.0,0.16067315]
[1673219972949,0.86963201,17080.0,17079.0,0.74612715]
[1673219973208,0.7123972,17080.0,17079.0,0.74612715]
[1673219973692,0.97452562,17080.0,17079.0,0.74612715]
[1673219974976,1.85369867,17080.0,17079.0,0.74612715]
[1673219976442,2.2031901,17080.0,17079.0,0.74612715]
[1673219977947,2.66877536,17080.0,17079.0,0.74612715]
[1673219978181,1.95221629,17080.0,17079.0,0.011]
[1673219978427,2.12286931,17080.0,17079.0,0.011]
[1673219978954,2.09415068,17080.0,17079.0,0.011]
[1673219979199,1.65723042,17080.0,17079.0,0.011]
[1673219979973,2.29033042,17080.0,17079.0,0.011]
[1673219980292,3.10080712,17080.0,17079.0,0.00931983]
[1673219980539,2.81685959,17080.0,17079.0,0.00931983]
[1673219980797,3.431566,17080.0,17079.0,0.00931983]
[1673219981039,2.31955683,17080.0,17079.0,0.00931983]
[1673219981785,2.846086,17080.0,17079.0,0.00931983]
[1673219982264,3.431566,17080.0,17079.0,0.00931983]
[1673219983027,2.20525683,17080.0,17079.0,0.00931983]
[1673219983781,2.17603042,17080.0,17079.0,0.00931983]
[1673219984773,2.6132639,17080.0,17079.0,0.00931983]
[1673219985027,2.17603042,17080.0,17079.0,0.00931983]
[1673219985514,2.20583508,17080.0,17079.0,0.00931983]
[1673219986263,1.80153508,17080.0,17079.0,0.00931983]
[1673219986539,1.77173042,17080.0,17079.0,0.00931983]
[1673219986782,2.20910697,17080.0,17079.0,0.00931983]
[1673219987023,1.77173042,17080.0,17079.0,0.00931983]
[1673219987772,2.20929006,17080.0,17079.0,0.59541383]
[1673219988011,2.20929006,17080.0,17079.0,0.59570383]
[1673219988260,1.77173042,17080.0,17079.0,0.59599383]
[1673219988497,1.77173042,17080.0,17079.0,0.59628383]
[1673219988748,1.80130611,17080.0,17079.0,0.59628383]
[1673219989228,2.32783528,17080.0,17079.0,0.59628383]
[1673219990481,2.29825959,17080.0,17079.0,0.01076983]
[1673219990731,2.53330469,17080.0,17079.0,0.01076983]
[1673219991027,2.29825959,17080.0,17079.0,0.00910006]
[1673219991269,2.36407574,17080.0,17079.0,0.00910006]
[1673219993517,2.79768512,17080.0,17079.0,0.00910006]
[1673219993764,2.7977956,17080.0,17079.0,0.00910006]
[1673219994065,2.90617732,17080.0,17079.0,0.00910006]
[1673219994308,2.68531445,17080.0,17079.0,0.00910006]
[1673219994832,4.66471099,17080.0,17079.0,0.00910006]
[1673219995592,4.63540161,17080.0,17079.0,0.00910006]
[1673219997416,2.42593006,17080.0,17079.0,0.00910006]
[1673219997648,3.01859394,17080.0,17079.0,0.00910006]
[1673219997827,2.7686943,17080.0,17079.0,0.00910006]
[1673219999283,2.7975584,17080.0,17079.0,0.00910006]
[1673219999528,2.7965584,17080.0,17079.0,0.00910006]
[1673220000764,2.17503042,17080.0,17079.0,0.00910006]
[1673220001016,2.76771133,17080.0,17079.0,0.00815894]
[1673220001260,2.76771133,17080.0,17079.0,0.00782157]
[1673220001518,2.76771133,17080.0,17079.0,0.00269057]
[1673220002752,1.05933322,17080.0,17079.0,0.00269057]
[1673220003003,1.05933322,17080.0,17079.0,0.58820457]
[1673220003246,1.08920304,17080.0,17079.0,0.58820457]
[1673220003727,1.08920304,17080.0,17079.0,1.17371857]
[1673220003728,1.50145528,17080.0,17079.0,1.17371857]
[1673220004237,1.50145528,17080.0,17079.0,1.56764491]
[1673220004238,0.97470304,17080.0,17079.0,1.56764491]
[1673220004483,0.94483322,17080.0,17079.0,1.56764491]
[1673220004986,1.3836385,17080.0,17079.0,2.15315891]
[1673220005269,0.94483322,17080.0,17079.0,2.15315891]
[1673220005518,1.31796285,17080.0,17079.0,3.20986009]
[1673220005791,1.31796285,17080.0,17079.0,3.50986009]
[1673220006309,1.08371466,17080.0,17079.0,3.51836009]
[1673220006571,0.90819874,17080.0,17079.0,3.51836009]
[1673220006807,0.91919874,17080.0,17079.0,3.22936009]
[1673220007050,1.34698854,17080.0,17079.0,3.21836009]
[1673220007295,1.34798854,17080.0,17079.0,2.87743309]
[1673220007529,1.52352256,17080.0,17079.0,2.87743309]
[1673220007776,1.34783388,17080.0,17079.0,2.87743309]
[1673220008016,1.34683388,17080.0,17079.0,2.72893309]
[1673220008269,1.34683388,17080.0,17079.0,3.12926009]
[1673220008515,0.90819874,17080.0,17079.0,3.39626009]
[1673220009007,0.90819874,17080.0,17079.0,3.40476009]
[1673220009262,0.90819874,17080.0,17079.0,3.10476009]